[Event "FIDE WSTC Open 50 2025"]
[Site "Prague"]
[Date "2025.02.19"]
[Round "3.27"]
[White "Kubikova, Hana"]
[Black "Svenn, Gosta"]
[Result "0-1"]
[Annotator "TA"]
[ECO "A96"]
[WhiteElo "2070"]
[BlackElo "2290"]
[PlyCount "82"]
[EventDate "2025.02.17"]
[EventType "team-tourn"]
[EventCountry "CZE"]
[SourceTitle "playchess.com"]
[Source "ChessBase"]
[SourceQuality "1"]
[TimeControl "40/5400+30:1800+30"]

{[%evp 16,82,17,21,29,24,26,18,50,33,42,30,20,38,47,67,84,82,106,46,68,-77,-82,-85,-95,-200,-189,-195,-166,-225,-133,-305,-129,-115,-106,-360,-273,-379,-390,-700,-691,-691,-672,-724,-527,-561,-556,-581,-574,-559,-572,-541,-428,-454,-444,-825,-381,-352,-378,-379,-375,-368,-363,-393,-394,-386,-370,-5306,-1002]} 1. d4 {[%emt 0:00:05]} e6 {[%emt 0:00:06]} 2. Nf3 {[%emt 0:00:34]} f5 {[%emt 0:00:06]} 3. c4 {[%emt 0:00:44]} Nf6 {[%emt 0:00:07]} 4. g3 {[%emt 0:00:26]} Be7 {[%emt 0:00:08]} 5. Bg2 {[%emt 0:00:23]} O-O {[%emt 0:00:13]} 6. O-O {[%emt 0:00:44]} d6 {[%emt 0:00:04]} 7. Nc3 {[%emt 0:01:21]} Ne4 {[%emt 0:00:31]} 8. Qc2 {[%emt 0:02:41]} Nxc3 {[%emt 0:00:06]} 9. Qxc3 {[%emt 0:02:40]} a5 {[%emt 0:00:18] A96: Classical Dutch: Fluid Systems: Early deviations.} 10. b3 {[%emt 0:04:21]} Bf6 {[%emt 0:01:01]} 11. Bb2 {[%emt 0:01:10]} Qe7 $146 {[%emt 0:02:46] The position is equal.} (11... Nc6 12. Rad1 Qe7 13. Rfe1 e5 14. dxe5 dxe5 15. e4 fxe4 16. Rxe4 Bf5 17. Re3 e4 18. Qc1 Bg4 19. Rde1 Qf7 20. Nd2 Bxb2 21. Qxb2 Qxf2+ 22. Kh1 Bf3 23. Nxf3 Qxb2 {0-1 Wagner,D (2581)-Azarov,S (2604) Titled Tuesday intern op 01st Dec blitz 2020 (6)}) 12. Qc2 {[%emt 0:02:02]} e5 {[%emt 0:01:35]} 13. dxe5 {[%emt 0:03:58]} dxe5 {[%emt 0:00:10]} 14. e4 {[%emt 0:02:19][%cal Be2e4,Be4e5][%mdl 32]} f4 {[%emt 0:14:04]} 15. gxf4 {[%emt 0:05:11]} exf4 {[%emt 0:00:07]} 16. e5 {[%emt 0:00:16][%csl Oe5] White has a strong passed pawn} Bh4 {[%emt 0:00:16]} 17. Qd2 {[%emt 0:04:18]} (17. Qc3 $16) 17... Ra6 {[%emt 0:06:40] [#]} 18. Ba3 {[%emt 0:06:29]} Qxa3 $17 {[%emt 0:08:29]} 19. Nxh4 {[%emt 0:00:04]} Qe7 {[%emt 0:00:24]} 20. Bd5+ {[%emt 0:05:12]} (20. Nf3 $17) 20... Kh8 $19 {[%emt 0:00:26]} 21. Nf3 {[%emt 0:04:29]} Rh6 {[%emt 0:14:12]} 22. Rfe1 {[%emt 0:10:21]} (22. Kh1 $142) 22... Bg4 {[%emt 0:08:57]} ({Black should play} 22... c6 $19 23. e6 (23. Be4 Na6 $17) 23... cxd5 24. cxd5 b6) 23. Qc3 $2 {[%emt 0:04:45]} (23. Bxb7 $2 c6 24. Qd3 Qxb7 $19) (23. e6 $17) 23... Nd7 {[%emt 0:19:18]} (23... c6 $19 {is more deadly.} 24. Be4 Nd7 25. Qxa5 Nc5) 24. e6 $17 {[%emt 0:02:30]} Nc5 $36 {[%emt 0:01:56][%mdl 2048] [#] Black is really pushing.} (24... Bxe6 $6 25. Bxe6 Rxe6 26. Qxa5 $11) 25. Re5 $2 {[%emt 0:02:10][%mdl 8192]} (25. Ne5 $17 {was forced.} Bxe6 26. Bg2) 25... Rg6 {[%emt 0:04:07]} (25... Bxe6 26. Rae1 $11) (25... Nxe6 26. Ng5 $17) 26. Kf1 {[%emt 0:00:48]} c6 {[%emt 0:00:33]} ({And not} 26... Bxe6 27. Bxe6 Rxe6 (27... Nxe6 28. Qxa5 h6 29. Rae1 $14) 28. Rae1 $14) (26... Nxe6 27. Be4 Rh6 (27... Bh3+ 28. Ke1 $17) 28. Re1 $17) 27. Rd1 $2 {[%emt 0:06:21]} (27. Rae1 cxd5 28. cxd5) 27... cxd5 $19 {[%emt 0:03:15]} 28. cxd5 {[%emt 0:00:19][%cal Od5d6] Strongly threatening d6!.} Qd6 {[%emt 0:07:43]} 29. e7 {[%emt 0:09:54]} Bh3+ {[%emt 0:01:50]} 30. Ke1 {[%emt 0:02:35]} Re8 {[%emt 0:00:11]} 31. Rd4 {[%emt 0:05:52]} Rxe7 {[%emt 0:02:52]} 32. Rxf4 {[%emt 0:00:23][%cal Rf4f8]} h6 {[%emt 0:00:27]} 33. Kd2 {[%emt 0:07:13]} Rxe5 {[%emt 0:00:38]} 34. Nxe5 {[%emt 0:00:42]} Qxd5+ {[%emt 0:01:11]} 35. Kc2 {[%emt 0:02:12]} (35. Rd4 $142 Ne4+ (35... Qxe5 $2 {too greedy.} 36. Rd8+ Kh7 37. Qxe5 $18) 36. Ke3 Nxc3 (36... Qxe5 $2 37. Rd8+ Kh7 38. Qxe5 $18) 37. Nxg6+ Kh7 38. Rxd5 Nxd5+ 39. Kd4) 35... Rf6 {[%emt 0:01:15]} (35... Re6 $142 36. Qxh3 Rxe5 (36... Qxe5 $2 37. Rf8+ Kh7 38. Qf5+ Qxf5+ 39. Rxf5 $19)) 36. Rxf6 {[%emt 0:01:34]} gxf6 {[%emt 0:00:26]} 37. Qxh3 {[%emt 0:00:58]} Qxe5 {[%emt 0:00:34]} 38. Qxh6+ {[%emt 0:00:23]} Kg8 {[%emt 0:00:07]} 39. Qg6+ {[%emt 0:00:08]} Kf8 {[%emt 0:00:10] ...Qe2+ would now be deadly.} 40. Qh6+ {[%emt 0:00:50]} Ke7 {[%emt 0:00:47]} 41. f4 $2 {[%emt 0:07:17]} (41. Qe3) 41... Qe4+ {[%emt 0:07:45] Weighted Error Value: White=0.87/Black=0.53  Loses game:     	White=2     	---        Missed win:     	---       	Black=1      Mistake:       	White=7     	Black=3      Inaccurate:     	White=1     	Black=1      OK:         	White=8     	Black=7      Best:        	White=4     	Black=4} (41... Qe2+ $142 42. Kc3 Ke6 (42... Qxa2 $2 43. Qg7+ Ke6 44. Qg8+ Kd6 45. Qf8+ Kc6 46. Qxf6+ Kb5 47. Qf7 $19)) 0-1

[Event "FIDE WSTC Open 50 2025"]
[Site "Prague"]
[Date "2025.02.19"]
[Round "3.28"]
[White "Wengholm, Anders"]
[Black "Svobodova, Michaela"]
[Result "1-0"]
[Annotator "TA"]
[ECO "A06"]
[WhiteElo "2132"]
[BlackElo "2048"]
[PlyCount "85"]
[EventDate "2025.02.17"]
[EventType "team-tourn"]
[EventCountry "CZE"]
[SourceTitle "playchess.com"]
[Source "ChessBase"]
[SourceQuality "1"]
[TimeControl "40/5400+30:1800+30"]

{[%evp 9,85,27,17,8,32,1,18,0,25,16,41,27,14,4,27,-21,8,0,13,19,25,12,27,20,20,20,46,20,56,36,66,54,68,75,65,26,19,11,0,5,40,30,40,39,42,29,40,0,0,-8,0,0,8,0,0,0,77,81,505,498,507,517,534,516,516,486,479,422,441,433,438,416,426,406,29991,29992,29992,1400]} 1. Nf3 {[%emt 0:00:10]} d5 {[%emt 0:00:17]} 2. g3 {[%emt 0:02:17]} Nf6 {[%emt 0:00:57]} 3. Bg2 {[%emt 0:01:57]} Bg4 {[%emt 0:00:39]} 4. O-O {[%emt 0:02:29]} Nbd7 {[%emt 0:02:07]} 5. h3 {[%emt 0:02:05]} Bh5 {[%emt 0:01:29]} 6. d3 {[%emt 0:10:35] A07: Réti Opening: New York and Capablanca Systems.} e5 7. Qe1 Be7 {[%emt 0:11:35]} 8. e4 {[%emt 0:01:27] The position is equal.} dxe4 {[%emt 0:02:25]} 9. dxe4 {[%emt 0:00:06]} O-O {[%emt 0:02:05]} 10. a4 $146 {[%emt 0:03:18]} ({Predecessor:} 10. Nh4 Re8 11. Nf5 Bf8 12. a4 a5 13. Na3 Bb4 14. Qe3 c6 15. Nc4 Qc7 16. Bd2 Bxd2 17. Qxd2 {1-0 Adam,R (2120)-Tanaka,T (2270) Montreal Pere Noel op 2023 (5)}) 10... a5 {[%emt 0:09:10]} 11. Bd2 {[%emt 0:00:58]} c6 {[%emt 0:03:04]} 12. Bc3 {[%emt 0:03:15]} (12. Nh4 $142) 12... Qc7 {[%emt 0:05:02]} 13. Nh4 {[%emt 0:02:15]} Rfe8 {[%emt 0:04:09]} 14. Na3 {[%emt 0:03:55]} b6 {[%emt 0:07:54]} 15. Nc4 {[%emt 0:03:20]} Rad8 {[%emt 0:03:20]} 16. Kh1 {[%emt 0:01:17]} Bc5 {[%emt 0:03:20]} 17. f3 {[%emt 0:03:55]} Bg6 {[%emt 0:07:12]} 18. Rd1 {[%emt 0:02:22]} Kh8 {[%emt 0:05:32]} 19. Rd3 {[%emt 0:10:23]} Nh5 {[%emt 0:01:18][%cal Oc5d4]} 20. Kh2 {[%emt 0:00:35] White is more active.} f6 {[%emt 0:00:57]} 21. Nxg6+ {[%emt 0:00:38]} hxg6 {[%emt 0:00:10]} 22. Qd2 {[%emt 0:11:42]} Nf8 {[%emt 0:01:39]} 23. Rd1 {[%emt 0:00:25]} Rxd3 {[%emt 0:04:09]} 24. Qxd3 {[%emt 0:06:56]} Bf2 {[%emt 0:01:07]} 25. Be1 {[%emt 0:01:22]} Bxe1 {[%emt 0:00:54]} 26. Rxe1 {[%emt 0:00:06]} Ne6 {[%emt 0:06:20]} 27. Qe2 {[%emt 0:08:56]} b5 {[%emt 0:03:57]} 28. axb5 (28. Na3 $14) 28... cxb5 $11 {[%emt 0:00:23]} 29. Ne3 {[%emt 0:07:01]} Nd4 {[%emt 0:01:28]} 30. Qf2 {[%emt 0:00:11]} b4 {[%emt 0:04:12] [#]} 31. c3 $1 {[%emt 0:00:20]} bxc3 {[%emt 0:01:14] White must now prevent ...c2.} 32. Nd5 $1 {[%emt 0:00:05][%csl LRc3,LRc7]} Qc4 {[%emt 0:01:45]} (32... Qc5 $11 {keeps the balance.} 33. bxc3 Ne6 34. Qxc5 Nxc5) 33. bxc3 $16 {[%emt 0:00:09]} Nb5 {[%emt 0:01:08][%mdl 8192] This costs Black the game.} (33... Nb3 $16) 34. Bf1 $18 {[%emt 0:00:30]} Qb3 {[%emt 0:01:52]} 35. Bxb5 {[%emt 0:00:12]} Qxb5 {[%emt 0:00:04]} 36. Nc7 $1 {[%emt 0:00:03][%csl LRb5,LRe8]} Qd7 {[%emt 0:00:20]} 37. Nxe8 {[%emt 0:00:07]} Qxe8 {[%emt 0:00:02][%mdl 4096] Endgame KQR-KQN} 38. Qe2 {[%emt 0:06:07]} Qc6 {[%emt 0:01:37]} 39. Qd3 {[%emt 0:01:01]} a4 {[%emt 0:00:54]} 40. Rb1 {[%emt 0:01:00] [#] And now Rb8+ would win.} Qc5 {[%emt 0:00:51]} 41. Kg2 {[%emt 0:31:24] Prevents Qf2+} a3 {[%emt 0:31:27]} (41... Qf8 $18 42. c4 Kh7) 42. Rb8+ {[%emt 0:01:30]} Kh7 {[%emt 0:00:03]} 43. Qd5 {[%emt 0:00:07] Weighted Error Value: White=0.12 (very precise) /Black=0.53  Loses game:     	---       	Black=1      Mistake:       	White=2     	Black=2      Inaccurate:     	White=3     	Black=5      OK:         	White=11    	Black=10     Best:        	White=5     	---} (43. Qd8 $142 Qc8 44. Rxc8 (44. Qxc8 g5 45. Qf5+ g6 46. Qc8 Nf4+ 47. gxf4 Kg7 48. Qg8+ Kh6 49. Qh8#) 44... g5 45. Qe8 Kh6 46. Qf7 (46. Qh8+ Kg6 47. g4 Nf4+ 48. Kh2 a2 49. Rc7 a1=Q 50. Rxg7#) 46... Nf4+ 47. gxf4 gxf4 48. Rh8+ Kg5 49. Qxg7#) 1-0

[Event "FIDE WSTC Open 50 2025"]
[Site "Prague"]
[Date "2025.02.19"]
[Round "3.30"]
[White "Van Haastert, Edwin"]
[Black "Obsivac, Josef"]
[Result "1-0"]
[Annotator "TA"]
[ECO "B32"]
[WhiteElo "2408"]
[BlackElo "2262"]
[PlyCount "123"]
[EventDate "2025.02.17"]
[EventType "team-tourn"]
[EventCountry "CZE"]
[SourceTitle "playchess.com"]
[Source "ChessBase"]
[SourceQuality "1"]
[TimeControl "40/5400+30:1800+30"]

{[%evp 13,123,22,30,5,25,40,30,4,12,7,23,19,16,13,18,-12,30,43,42,40,84,72,79,79,112,0,81,65,76,80,118,96,108,81,107,98,114,114,109,81,81,75,153,150,154,144,176,183,170,189,187,160,186,129,150,115,120,114,112,112,119,111,116,97,124,124,131,126,136,135,136,136,136,136,136,136,136,63,70,76,81,92,136,136,178,165,239,231,604,570,683,677,700,283,275,275,405,399,389,396,355,395,610,593,610,605,598,591,587,564,489,468]} 1. e4 {[%emt 0:00:03]} c5 {[%emt 0:00:06]} 2. Nf3 {[%emt 0:00:05]} Nc6 {[%emt 0:00:09]} 3. d4 {[%emt 0:00:05]} cxd4 {[%emt 0:00:07]} 4. Nxd4 {[%emt 0:00:04]} e5 {[%emt 0:00:18]} 5. Nb5 {[%emt 0:00:06]} d6 {[%emt 0:00:12]} 6. N1c3 {[%emt 0:00:05]} a6 {[%emt 0:00:26]} 7. Na3 {[%emt 0:00:05]} Be7 {[%emt 0:00:18] 7...Be6 is a critical line.} 8. Nd5 {[%emt 0:01:06] B32: Sicilian: Löwenthal and Kalashnikov Variations.} Nf6 {[%emt 0:01:06]} 9. Nxf6+ {[%emt 0:00:07]} Bxf6 {[%emt 0:00:06]} 10. Bc4 {[%emt 0:00:07] White has an edge.} O-O {[%emt 0:01:17]} 11. O-O {[%emt 0:00:06]} Rb8 {[%emt 0:02:45]} 12. c3 $146 {[%emt 0:02:09]} ({Predecessor:} 12. Be3 b5 13. Bd5 Qc7 14. b3 Ne7 15. c4 Nxd5 16. cxd5 Bd7 17. Qd2 Bd8 18. Nc2 {0-1 Davey,M (1995)-Decoster,F (2298) Ghent Taminco op 37th 2014 (5)}) 12... b5 {[%emt 0:04:08]} 13. Bb3 {[%emt 0:01:23]} a5 {[%emt 0:05:46]} 14. Qd3 {[%emt 0:26:44]} b4 {[%emt 0:25:48]} 15. Nc2 {[%emt 0:04:37][%cal Ba3c2,Bc2e3,Be3d5][%mdl 32]} Be7 {[%emt 0:08:07]} 16. Ne3 {[%emt 0:02:40]} g6 {[%emt 0:07:48]} 17. Rd1 {[%emt 0:03:17]} Kg7 {[%emt 0:03:45]} 18. Nd5 {[%emt 0:03:02][%csl Od5] Strong Square White (d5)} Bg5 {[%emt 0:20:30]} 19. Ne3 {[%emt 0:32:50]} Be7 $1 {[%emt 0:01:50]} 20. Qd2 {[%emt 0:01:22]} Be6 {[%emt 0:03:46]} 21. Nd5 {[%emt 0:00:48]} Bxd5 {[%emt 0:02:07]} 22. Bxd5 {[%emt 0:00:21]} bxc3 {[%emt 0:00:39]} 23. bxc3 {[%emt 0:00:45]} Qc7 {[%emt 0:01:20]} 24. Qh6+ {[%emt 0:00:15]} Kh8 {[%emt 0:01:11]} 25. Rd3 $36 {[%emt 0:00:22][%mdl 2048] [#] Keeping Black busy. White has more active pieces.} Rg8 {[%emt 0:01:53]} 26. Bg5 {[%emt 0:10:39][%cal Oh6h7] White threatens Qxh7+! and mate.} (26. Bxf7 $2 Bf8 27. Qd2 Qxf7 $19) 26... Bxg5 {[%emt 0:00:46]} 27. Qxg5 {[%emt 0:00:01]} Qe7 {[%emt 0:01:27] Wards off Qf6+} (27... a4 $142) 28. Qxe7 $16 {[%emt 0:01:06]} Nxe7 29. Bxf7 {[%emt 0:00:10]} Rgf8 {[%emt 0:00:11]} 30. Bb3 {[%emt 0:00:09]} Rf6 {[%emt 0:00:47]} 31. Rad1 {[%emt 0:00:22]} Rb6 {[%emt 0:00:15]} 32. f3 {[%emt 0:00:47]} g5 {[%emt 0:00:58]} 33. Rb1 {[%emt 0:01:29]} (33. c4 $18 {[%cal Oc4c5] c5! would now be deadly.} Rc6 34. c5 Rxc5 35. Rxd6 Rxd6 36. Rxd6) 33... Rf8 {[%emt 0:01:54]} 34. Bc2 {[%emt 0:00:47]} Rxb1+ {[%emt 0:00:50]} 35. Bxb1 {[%emt 0:00:04][%mdl 4096] Endgame KRB-KRN. White is a pawn up.} Rb8 {[%emt 0:00:06]} 36. Bc2 {[%emt 0:00:04]} Rb6 {[%emt 0:00:13]} 37. Bb3 {[%emt 0:00:47]} Kg7 {[%emt 0:00:18]} 38. Kf2 {[%emt 0:00:19]} Kf6 {[%emt 0:00:28]} 39. Ke3 {[%emt 0:00:23]} Rc6 {[%emt 0:02:13]} 40. Kd2 {[%emt 0:00:26]} Rb6 {[%emt 0:01:21]} 41. Kc2 {[%emt 0:31:06]} h5 {[%emt 0:09:53]} 42. g3 {[%emt 0:00:00]} Kg7 {[%emt 0:02:34]} 43. Be6 {[%emt 0:00:00]} Kf6 {[%emt 0:01:41]} 44. Bd7 {[%emt 0:00:00]} Kf7 {[%emt 0:00:49]} 45. c4 {[%emt 0:00:00]} ({White should play} 45. a4 $16) 45... Nc6 $1 $14 {[%emt 0:03:41]} 46. Bxc6 {[%emt 0:00:00] Black is on the road to losing.} (46. Rxd6 $2 Nb4+ 47. Kb3 Rxd6 $19) 46... Rxc6 {[%emt 0:00:02] KR-KR. White is a pawn up.} 47. Kc3 {[%emt 0:00:00]} Rb6 {[%emt 0:01:14]} 48. Rd5 {[%emt 0:00:00]} Rb1 {[%emt 0:00:23]} 49. Rxd6 {[%emt 0:00:00]} (49. Rxa5 Rh1 $11) 49... Rf1 {[%emt 0:00:21]} (49... Rc1+ $142 50. Kb3 Rb1+ 51. Ka3 Rc1) 50. c5 $18 {[%emt 0:00:00]} Rxf3+ $2 {[%emt 0:00:17] [#]} (50... Rc1+ 51. Kd3 h4) 51. Rd3 {[%emt 0:00:00]} Rf1 {[%emt 0:03:43]} 52. Kc4 {[%emt 0:00:00]} Ke6 {[%emt 0:00:55]} 53. Rd6+ {[%emt 0:00:00]} (53. Kb5 $142) 53... Ke7 {[%emt 0:00:02]} 54. Rh6 {[%emt 0:00:00]} Rd1 {[%emt 0:01:44]} (54... Rf2 {is a better defense.} 55. Rxh5 Rxa2) 55. Rxh5 {[%emt 0:00:00]} Rd4+ {[%emt 0:00:07]} 56. Kb5 {[%emt 0:00:00]} Rxe4 {[%emt 0:03:15]} 57. Rxg5 {[%emt 0:00:00]} ({But not} 57. Kxa5 Ke6 58. Rh6+ (58. Rxg5 Kd5 $18) 58... Kd7 59. c6+ Kc7 $18) 57... Kf6 {[%emt 0:01:32]} (57... Re2 $142 58. a3 (58. Kxa5 Rxa2+ 59. Kb6 Rb2+ 60. Kc7 Ke6 $18) 58... e4) 58. h4 {[%emt 0:00:00] White is clearly winning.} Re2 59. a4 {[%emt 0:00:00]} (59. Kxa5 Rxa2+ 60. Kb6 Rb2+ 61. Kc7 e4 $16) 59... e4 {[%emt 0:01:07]} 60. Rg8 {[%emt 0:00:00]} Kf7 {[%emt 0:01:10]} 61. Rg4 {[%emt 0:00:00]} Ke6 {[%emt 0:00:14]} 62. Kc4 {[%emt 0:00:00] Weighted Error Value: White=0.19 (very precise) /Black=0.26 (precise)   Mistake:       	White=2     	Black=5      Inaccurate:     	White=2     	Black=7      OK:         	White=28    	Black=13     Best:        	White=2     	Black=3      Strong:       	---       	Black=2} ({Weaker is} 62. Kxa5 Kd5 63. Rg5+ Ke6 $18) 1-0

[Event "FIDE WSTC Open 50 2025"]
[Site "Prague"]
[Date "2025.02.19"]
[Round "3.31"]
[White "Holemar, David"]
[Black "Roobol, Martin"]
[Result "1/2-1/2"]
[Annotator "TA"]
[ECO "A48"]
[WhiteElo "2150"]
[BlackElo "2242"]
[PlyCount "36"]
[EventDate "2025.02.17"]
[EventType "team-tourn"]
[EventCountry "CZE"]
[SourceTitle "playchess.com"]
[Source "ChessBase"]
[SourceQuality "1"]
[TimeControl "40/5400+30:1800+30"]

{[%evp 15,23,-8,5,-14,-8,-12,4,-4,-10,-10]} 1. d4 {[%emt 0:00:02]} Nf6 {[%emt 0:00:06]} 2. Nf3 {[%emt 0:01:18]} g6 {[%emt 0:00:08]} 3. Bg5 {[%emt 0:01:04]} Bg7 {[%emt 0:00:21]} 4. Nbd2 {[%emt 0:00:54]} d5 {[%emt 0:03:33]} 5. c3 {[%emt 0:03:52]} O-O {[%emt 0:00:26]} 6. e3 {[%emt 0:00:42]} b6 {[%emt 0:02:20]} 7. Bd3 {[%emt 0:03:05]} Bb7 {[%emt 0:01:05]} 8. O-O {[%emt 0:00:25]} c5 {[%emt 0:01:17] The position is equal.} 9. Qe2 {[%emt 0:01:52] D03: 1 d4 d5 2 Nf3 Nf6 3 Bg5, including Torre Attack with early ...d5.} Ne4 {[%emt 0:08:08]} 10. Bh4 {[%emt 0:00:31]} Nd7 {[%emt 0:00:21]} 11. Ba6 {[%emt 0:00:50]} Bxa6 {[%emt 0:07:15]} 12. Qxa6 {[%emt 0:00:09] Not much happened in this game.   Weighted Error Value: White=0.08 (flawless) /Black=0.07 (flawless)   OK:         	White=1     	Black=2} {Predecessor:} Ndf6 $146 13. a4 cxd4 14. exd4 Nxd2 15. Nxd2 Qd7 16. Rfe1 e6 17. Qb5 Qb7 18. Qd3 Rfc8 {0-1 Monda,L (2086)-Zamar Kodelja,J (2249) Lignano Sabbiadoro op 3rd 2017 (5)} 1/2-1/2